bitfinex/quotes_SOLUSD_20241113
["timestamp","ask_amount","ask_price","bid_price","bid_amount"]
[1731511247024,23.776884,216.21,216.12,36.79998491]
[1731511247213,23.776884,216.21,216.04,68.67148491]
[1731511247214,23.902374,216.18,216.04,5.33193065]
[1731511247393,23.902374,216.18,216.1,36.79998491]
[1731511247598,20.2,216.22,216.12,36.79998491]
[1731511247599,43.776884,216.2,216.12,36.79998491]
[1731511247997,0.12549,216.19,216.1,36.79998491]
[1731511248192,20.0,216.14,215.95,13.0215]
[1731511248420,0.22549,216.15,216.0,36.79998491]
[1731511248421,0.12549,216.09,216.0,36.79998491]
[1731511248715,43.902374,216.07,216.0,36.79998491]
[1731511248897,23.776884,216.07,216.02,36.79998491]
[1731511249094,43.776884,216.11,216.06,36.79998491]
[1731511249397,36.79998491,216.16,215.96,0.1]
[1731511249398,43.776884,216.15,216.08,36.79998491]
[1731511249614,56.92547491,216.12,216.02,36.79998491]
[1731511249813,20.12549,216.08,216.0,36.79998491]
[1731511250019,20.12549,216.06,215.98,36.79998491]
[1731511250225,36.92547491,216.08,215.98,36.79998491]
[1731511250404,23.776884,216.06,216.0,36.79998491]
[1731511250718,23.776884,216.12,216.04,36.79998491]
[1731511250910,161.8,216.22,215.93,36.79998491]
[1731511250911,4.626,216.17,216.07,36.79998491]
[1731511251218,36.89998491,216.12,216.03,36.79998491]
[1731511251422,0.12549,216.11,216.03,36.79998491]
[1731511251794,4.75279,216.11,216.03,36.79998491]
[1731511251994,0.12549,216.09,216.03,36.79998491]
[1731511252415,0.1,216.15,216.05,36.79998491]
[1731511252618,36.79998491,216.15,216.05,36.79998491]
[1731511252800,0.12549,216.14,216.05,36.79998491]
[1731511253632,4.75269,216.12,216.03,36.79998491]
[1731511253922,0.12549,216.1,216.03,36.79998491]
[1731511254100,20.0,216.04,215.97,36.79998491]
[1731511254302,20.0,216.04,215.99,36.79998491]
[1731511254501,23.776884,216.1,216.03,36.79998491]
[1731511254720,23.776884,216.11,216.05,36.79998491]
[1731511254918,4.4263028,216.18,216.09,36.79998491]
[1731511255220,36.79998491,216.26,216.16,36.79998491]
[1731511255405,0.551069,216.3,215.94,23.79935307]
[1731511255406,41.42358491,216.28,216.18,36.79998491]
[1731511255606,36.92547491,216.28,216.18,36.79998491]
[1731511255921,4.8236,216.29,216.01,32.4291]
[1731511255922,36.79998491,216.22,216.13,36.79998491]
[1731511256224,7.2205762,216.25,216.17,36.79998491]
[1731511256407,7.2205762,216.25,216.19,36.79998491]
[1731511256616,7.2205762,216.25,216.04,36.79998491]
[1731511256617,0.12549,216.24,216.17,36.79998491]
[1731511256802,0.12549,216.22,216.13,36.79998491]
[1731511257008,0.12549,216.2,216.11,36.79998491]
[1731511257510,23.902374,216.2,216.11,36.79998491]
[1731511257828,36.79998491,216.19,216.09,36.79998491]
[1731511258020,43.902374,216.16,216.06,36.79998491]
[1731511258218,43.776884,216.2,216.12,36.79998491]
[1731511258608,0.12549,216.19,216.12,36.79998491]
[1731511259006,43.776884,216.2,216.12,36.79998491]
[1731511259334,7.3205762,216.25,216.04,36.79998491]
[1731511259335,7.2205762,216.25,216.18,36.79998491]
[1731511259620,7.2205762,216.25,216.08,0.1]
[1731511259621,11.8449762,216.25,216.16,36.79998491]
[1731511260024,11.8449762,216.25,216.13,36.79998491]
[1731511260025,36.79998491,216.23,216.13,36.79998491]
[1731511260205,11.8449762,216.25,216.17,36.79998491]
[1731511260404,11.8449762,216.25,216.09,0.1]
[1731511260405,7.2205762,216.25,216.19,36.79998491]
[1731511261016,7.2205762,216.25,216.04,13.1782]
[1731511261017,0.12549,216.2,216.04,13.1782]
[1731511261208,0.12549,216.2,216.13,36.79998491]
[1731511261620,20.0,216.24,216.19,36.79998491]
[1731511261831,7.2205762,216.25,216.23,36.79998491]
[1731511262005,0.451069,216.3,216.23,36.79998491]
[1731511262207,5.24393699,216.26,216.17,36.79998491]
[1731511262409,0.12549,216.25,216.15,36.79998491]
[1731511262725,0.12549,216.25,216.17,36.79998491]
[1731511263039,4.6237,216.28,216.04,36.89998491]
[1731511263040,23.776884,216.27,216.21,36.79998491]
[1731511263331,37.25105391,216.3,216.04,36.79998491]
[1731511263332,0.451069,216.3,216.25,36.79998491]
[1731511263627,0.451069,216.3,216.29,36.79998491]
[1731511263927,41.41898491,216.5,216.34,0.1]
[1731511264110,36.79998491,216.48,216.37,36.79998491]
[1731511264622,55.26898491,216.5,216.39,36.79998491]
[1731511264924,7.21729351,216.47,216.39,36.79998491]
[1731511265130,7.21729351,216.47,216.37,36.79998491]
[1731511265131,36.79998491,216.46,216.37,36.79998491]
[1731511265430,36.79998491,216.42,216.33,36.79998491]
[1731511265631,0.12549,216.43,216.35,36.79998491]
[1731511265824,7.31859676,216.46,216.41,36.79998491]
[1731511265825,7.21859676,216.46,216.41,36.79998491]
[1731511266140,0.451069,216.51,216.43,36.79998491]
[1731511266307,0.451069,216.51,216.33,0.1]
[1731511266308,0.451069,216.51,216.47,36.79998491]
[1731511266716,0.451069,216.51,216.45,36.79998491]
[1731511267426,0.12549,216.47,216.38,36.79998491]
[1731511267605,4.6197,216.46,216.38,36.79998491]
[1731511267809,0.12549,216.39,216.3,36.79998491]
[1731511268018,20.12549,216.35,216.26,36.79998491]
[1731511268317,23.776884,216.32,216.26,36.79998491]
[1731511268519,20.0,216.29,216.22,36.79998491]
[1731511268728,20.0,216.29,216.24,36.79998491]
[1731511268913,23.776884,216.28,216.22,36.79998491]
[1731511269114,23.776884,216.26,216.22,36.79998491]
[1731511269428,23.776884,216.26,216.2,36.79998491]
[1731511269805,23.776884,216.26,216.15,36.79998491]
[1731511269806,23.776884,216.26,216.22,36.79998491]
[1731511270003,43.776884,216.29,216.2,36.79998491]
[1731511270207,0.12549,216.26,216.18,36.79998491]
[1731511270422,43.776884,216.27,216.08,12.9246]
[1731511270423,43.776884,216.27,216.22,36.79998491]
[1731511270626,36.79998491,216.24,216.04,0.1]
[1731511270825,0.1,216.28,216.12,36.79998491]
[1731511270826,20.0,216.21,216.12,36.79998491]
[1731511271028,36.79998491,216.24,216.14,36.79998491]
[1731511271209,20.0,216.33,216.15,0.1]
[1731511271413,20.0,216.33,216.13,0.2]
[1731511271710,0.1,216.31,216.08,0.2]
[1731511271920,33.85,216.33,215.97,102.2813]
[1731511271921,20.0,216.33,216.15,0.1]
[1731511272128,36.79998491,216.27,216.17,36.79998491]
[1731511272309,36.79998491,216.21,216.11,36.79998491]
[1731511272515,36.79998491,216.19,216.09,36.79998491]
[1731511272820,0.1,216.25,216.01,36.79998491]
[1731511272821,36.79998491,216.11,216.01,36.79998491]
[1731511273021,36.79998491,216.11,215.96,12.7977]
[1731511273022,36.79998491,216.12,216.03,36.79998491]
[1731511273216,20.0,216.14,216.06,36.79998491]
[1731511273416,36.79998491,216.21,216.12,36.79998491]
[1731511273616,36.79998491,216.23,216.04,36.79998491]
[1731511273836,0.12549,216.22,216.04,36.79998491]
[1731511274024,36.79998491,216.19,216.08,36.79998491]
[1731511274230,36.79998491,216.17,216.08,36.79998491]
[1731511274709,36.79998491,216.17,216.07,36.79998491]
[1731511274911,36.79998491,216.15,216.05,36.79998491]
[1731511275244,36.79998491,216.26,215.97,32.2813]
[1731511275245,36.79998491,216.29,216.14,36.79998491]
[1731511275412,36.79998491,216.31,216.2,36.79998491]
[1731511275614,36.79998491,216.27,216.18,36.79998491]
[1731511275826,36.79998491,216.27,216.04,36.79998491]
[1731511275827,36.79998491,216.25,216.14,36.79998491]
[1731511276129,36.79998491,216.28,216.18,36.79998491]
[1731511276628,36.79998491,216.28,216.07,0.1]
[1731511276629,36.79998491,216.22,216.12,36.79998491]
[1731511276821,36.79998491,216.22,215.96,17.2207]
[1731511276822,36.79998491,216.16,216.06,36.79998491]
[1731511277021,36.79998491,216.1,216.0,36.79998491]
[1731511277431,36.79998491,216.06,215.96,36.79998491]
[1731511277631,36.79998491,216.0,215.91,36.89998491]
[1731511278152,36.79998491,216.04,215.96,0.1]
[1731511278428,36.79998491,216.04,215.97,0.1]
[1731511278628,36.79998491,216.09,215.99,36.89998491]
[1731511278838,36.79998491,216.03,215.93,36.79998491]
[1731511279021,41.52648491,216.15,215.93,36.79998491]
[1731511279022,36.79998491,216.01,215.93,36.79998491]
[1731511279726,36.79998491,216.03,215.93,36.89998491]
[1731511279932,36.79998491,216.05,215.95,36.79998491]
[1731511281529,36.79998491,216.01,215.91,0.2]
[1731511281713,36.79998491,216.07,215.98,36.79998491]
[1731511282333,36.79998491,216.05,215.96,36.79998491]
[1731511282632,36.79998491,216.01,215.92,36.79998491]
[1731511282828,7.23234662,216.06,215.88,12.4415]
[1731511282829,44.03233153,216.06,215.96,36.79998491]
[1731511283043,36.79998491,216.02,215.94,36.79998491]
[1731511283229,36.79998491,216.0,215.92,36.79998491]
[1731511283433,36.79998491,216.0,215.9,36.79998491]
[1731511283937,36.79998491,216.0,215.92,36.79998491]
[1731511284445,36.79998491,215.98,215.9,36.79998491]
[1731511284624,36.79998491,216.0,215.92,36.79998491]
[1731511284818,36.79998491,216.0,215.82,36.79998491]
[1731511284819,36.79998491,215.98,215.88,36.79998491]
[1731511285126,36.79998491,215.98,215.9,36.79998491]
[1731511285327,41.42888491,216.04,215.96,36.79998491]
[1731511285328,36.79998491,216.04,215.96,36.79998491]
[1731511285514,44.03233153,216.06,215.96,36.79998491]
[1731511285720,36.79998491,216.04,215.96,36.79998491]
[1731511286118,44.03233153,216.06,215.96,36.79998491]
[1731511286730,44.03233153,216.06,215.84,4.55774458]
[1731511286731,44.03233153,216.06,215.98,36.79998491]
[1731511286940,41.42708491,216.12,216.02,36.79998491]
[1731511287631,36.79998491,216.1,216.02,36.79998491]
[1731511287936,36.79998491,216.1,216.0,36.79998491]
[1731511288120,4.6272,216.12,216.02,36.79998491]
[1731511288121,36.79998491,216.12,216.02,36.79998491]
[1731511288320,9.19705245,216.14,216.02,36.79998491]
[1731511288321,36.79998491,216.1,216.02,36.79998491]
[1731511288519,36.79998491,216.1,215.89,4.42536196]
[1731511288520,36.79998491,216.04,215.86,0.1]
[1731511288725,36.79998491,216.04,215.93,36.79998491]
[1731511288929,0.1,216.09,215.93,36.79998491]
[1731511288930,36.79998491,216.02,215.93,36.79998491]
[1731511289138,0.12549,216.03,215.95,36.79998491]
[1731511289337,36.79998491,216.04,215.95,36.79998491]
[1731511289718,36.79998491,216.06,215.97,36.79998491]
[1731511290128,36.79998491,216.06,215.95,36.79998491]
[1731511290416,36.79998491,216.06,215.97,36.79998491]
[1731511291039,36.79998491,216.08,215.99,36.79998491]
[1731511291218,36.79998491,216.1,216.01,36.79998491]
[1731511291422,18.507662,216.14,216.07,36.79998491]
[1731511291631,30.7767,216.27,215.96,33.2067]
[1731511291632,36.79998491,216.21,216.13,36.79998491]
[1731511291833,36.79998491,216.19,216.09,36.79998491]
[1731511292026,36.79998491,216.17,216.07,36.79998491]
[1731511292521,36.79998491,216.17,216.09,36.79998491]
[1731511292725,36.79998491,216.19,216.09,36.79998491]
[1731511294142,44.02788029,216.21,216.11,36.79998491]
[1731511294356,37.0655,216.31,216.1,1.6195]
[1731511294357,36.79998491,216.31,216.19,36.79998491]
[1731511294647,36.79998491,216.31,216.22,36.79998491]
[1731511294840,44.02408651,216.31,216.22,36.79998491]
[1731511295228,4.58851526,216.35,216.26,36.79998491]
[1731511295229,36.79998491,216.35,216.26,36.79998491]
[1731511295538,36.79998491,216.35,216.15,36.79998491]
[1731511295539,36.79998491,216.39,216.3,36.79998491]
[1731511295739,36.79998491,216.39,216.31,0.4622]
[1731511295944,36.79998491,216.37,216.31,1.6179]
[1731511296818,0.12549,216.34,216.26,37.95598491]
[1731511297027,36.79998491,216.29,216.21,36.79998491]
[1731511297342,20.12549,216.22,216.11,1.1568]
[1731511297546,20.12549,216.22,216.07,0.4628]
[1731511297547,36.79998491,216.15,216.07,0.4628]
[1731511297730,36.79998491,216.15,215.96,0.1]
[1731511297731,0.1,216.16,216.01,1.6202]
[1731511297923,0.1,216.13,216.01,1.1573]
[1731511298122,0.1,216.09,215.86,0.1]
[1731511298327,20.12549,216.11,215.91,0.1]
[1731511298828,36.79998491,216.08,215.98,36.79998491]
[1731511299220,36.79998491,216.06,215.96,36.79998491]
[1731511299626,36.79998491,216.06,215.85,4.0378]
[1731511299627,20.0,216.07,215.98,36.79998491]
[1731511300341,36.79998491,216.06,215.98,36.79998491]
[1731511300541,36.79998491,216.08,215.98,36.79998491]
[1731511300847,20.0,216.07,215.99,1.6203]
[1731511301026,36.79998491,216.04,215.99,1.1574]
[1731511301227,36.79998491,216.06,215.99,1.6203]
[1731511301420,36.79998491,216.08,215.99,1.6203]
[1731511301836,36.79998491,216.06,215.99,1.6203]
[1731511302043,36.79998491,216.06,215.99,1.1574]
[1731511302241,36.79998491,216.04,215.99,1.1574]
[1731511302448,36.79998491,216.06,215.99,1.1574]
[1731511303733,36.79998491,216.14,216.04,36.79998491]
[1731511305035,36.79998491,216.14,216.05,3.2399]
[1731511305231,36.79998491,216.18,216.08,36.79998491]
[1731511305429,36.79998491,216.23,216.12,36.79998491]
[1731511305632,36.79998491,216.21,216.1,36.79998491]
[1731511305830,4.38783483,216.25,216.08,36.79998491]
[1731511305831,36.79998491,216.17,216.08,36.79998491]
[1731511306046,36.79998491,216.19,216.1,36.79998491]
[1731511306246,36.79998491,216.21,216.1,36.79998491]
[1731511306431,36.79998491,216.19,216.1,36.79998491]
[1731511306631,36.79998491,216.19,216.11,3.239]
[1731511307152,44.02807025,216.21,216.12,36.79998491]
[1731511307446,36.79998491,216.25,216.15,36.79998491]
[1731511307857,36.79998491,216.29,216.21,36.79998491]
[1731511308160,36.79998491,216.33,216.23,36.79998491]
[1731511308631,7.22361746,216.33,216.26,3.2368]
[1731511308829,36.79998491,216.35,216.26,3.2368]
[1731511309027,36.79998491,216.28,216.16,0.9252]
[1731511309248,36.79998491,216.28,216.17,36.79998491]
[1731511309444,36.79998491,216.3,216.19,36.79998491]
[1731511309753,36.79998491,216.36,216.27,36.79998491]
[1731511309963,36.79998491,216.36,216.25,36.79998491]
[1731511310633,44.02289188,216.36,216.27,36.79998491]
[1731511310833,44.02289188,216.36,216.26,3.2368]
[1731511310834,7.22290697,216.36,216.29,36.79998491]
[1731511311145,36.79998491,216.38,216.26,3.2368]
[1731511311146,36.79998491,216.4,216.31,36.79998491]
[1731511311452,18.478434,216.46,216.38,36.79998491]
[1731511311659,0.451069,216.51,216.44,36.79998491]
[1731511311834,0.451069,216.51,216.46,36.79998491]
[1731511312153,0.451069,216.51,216.44,36.79998491]
[1731511312534,0.451069,216.51,216.45,0.924]
[1731511312857,36.79998491,216.49,216.41,0.9241]
[1731511313034,36.79998491,216.49,216.4,36.79998491]
[1731511313350,36.79998491,216.41,216.32,36.79998491]
[1731511313560,36.79998491,216.39,216.3,36.79998491]
[1731511313735,36.79998491,216.37,216.29,2.3117]
[1731511313932,36.79998491,216.35,216.26,36.79998491]
[1731511314248,36.79998491,216.35,216.26,37.72478491]
[1731511314660,36.79998491,216.33,216.24,36.79998491]
[1731511314949,36.79998491,216.35,216.26,36.79998491]
[1731511315136,4.6212,216.39,216.22,35.4056]
[1731511315137,36.79998491,216.39,216.3,36.79998491]
[1731511315339,24.6204,216.43,216.34,36.79998491]
[1731511315340,36.79998491,216.43,216.34,36.79998491]
[1731511315647,36.79998491,216.43,216.32,36.79998491]
[1731511315941,36.79998491,216.41,216.32,36.79998491]
[1731511316536,36.79998491,216.39,216.3,36.79998491]
[1731511316741,36.79998491,216.39,216.31,3.2359]
[1731511317433,36.79998491,216.37,216.28,36.79998491]
[1731511317643,36.79998491,216.37,216.28,37.72458491]
[1731511317942,36.79998491,216.31,216.22,32.1683]
[1731511318147,36.79998491,216.31,216.22,3.2373]
[1731511319051,36.79998491,216.31,216.22,2.3124]
[1731511319244,36.79998491,216.29,216.2,36.79998491]
[1731511319448,36.79998491,216.23,216.14,0.9253]
[1731511319646,36.79998491,216.25,216.15,36.79998491]
[1731511319847,20.0,216.3,216.14,3.2386]
[1731511320055,36.79998491,216.27,216.18,36.79998491]
[1731511320357,36.79998491,216.23,216.14,39.11328491]
[1731511320564,36.79998491,216.23,216.14,40.03858491]
[1731511320736,36.79998491,216.17,216.12,0.12549]
[1731511320938,36.79998491,216.15,216.12,0.12549]
[1731511321350,36.79998491,216.17,216.12,0.12549]
[1731511322064,36.79998491,216.14,216.12,0.12549]
[1731511322652,20.0,216.13,216.12,0.12549]
[1731511323040,36.79998491,216.16,216.12,0.12549]
[1731511323251,36.79998491,216.2,216.12,0.12549]
[1731511323566,177.7865,216.23,216.12,0.12549]
[1731511323733,7.22799339,216.2,216.12,0.12549]
[1731511324060,36.79998491,216.14,216.12,0.12549]
[1731511324238,36.79998491,216.18,216.12,0.12549]
[1731511324434,44.0279783,216.2,216.12,0.12549]
[1731511324841,7.22799339,216.2,216.12,3.36429]
[1731511325040,7.22799339,216.2,216.13,36.79998491]
[1731511325359,20.0,216.17,216.12,0.12549]
[1731511325542,36.79998491,216.14,216.12,0.12549]
[1731511326256,181.6,216.13,216.12,0.12549]
[1731511326841,186.2268,216.13,216.12,0.12549]
[1731511328771,186.2268,216.13,215.9,4.6315]
[1731511328772,0.1,216.08,215.93,67.41058491]
[1731511329063,36.79998491,215.94,215.85,36.79998491]
[1731511329245,36.79998491,216.04,215.84,32.0976]
[1731511329246,36.79998491,215.92,215.84,32.0976]
[1731511329446,36.79998491,215.92,215.83,36.79998491]
[1731511329744,6.04152864,216.01,215.83,36.79998491]
[1731511329745,36.79998491,215.98,215.89,36.79998491]
[1731511330136,36.79998491,216.02,215.93,36.79998491]
[1731511330555,36.79998491,216.1,216.0,36.79998491]
[1731511330758,36.79998491,216.1,216.02,36.79998491]
[1731511331064,41.42488491,216.22,216.09,0.12549]
[1731511331237,36.79998491,216.24,216.17,0.12549]
[1731511331441,41.42458491,216.24,216.03,0.1]
[1731511331641,7.22777882,216.21,216.13,36.79998491]
[1731511331866,36.79998491,216.18,216.01,7.8699]
[1731511332043,36.79998491,216.14,216.03,36.79998491]
[1731511332251,36.79998491,216.1,216.0,36.79998491]
[1731511332458,36.79998491,216.08,215.98,36.79998491]
[1731511332757,36.79998491,216.06,215.98,36.79998491]
[1731511333151,4.6281,216.07,215.98,36.79998491]
[1731511333349,4.6281,216.07,215.88,12.39]
[1731511333350,36.89998491,216.05,215.88,2.316]
[1731511333548,36.79998491,216.03,215.94,36.79998491]
[1731511334057,36.79998491,216.03,215.92,36.79998491]
[1731511334269,20.0,216.04,215.94,36.79998491]
[1731511334567,36.79998491,215.99,215.9,36.79998491]
[1731511334768,166.23,215.98,215.88,36.79998491]
[1731511334972,60.57686891,215.93,215.83,36.79998491]
[1731511335153,60.57686891,215.93,215.78,0.4634]
[1731511335154,20.0,215.9,215.78,36.79998491]
[1731511335351,36.79998491,215.87,215.78,36.79998491]
[1731511335868,161.6,215.89,215.75,0.451069]
[1731511335869,20.0,215.78,215.75,0.451069]
[1731511336063,198.39998491,215.77,215.75,0.451069]
[1731511336379,205.376884,215.76,215.75,0.451069]
[1731511336554,43.776884,215.76,215.75,0.451069]
[1731511336969,20.0,215.76,215.75,0.451069]
[1731511337473,24.6347,215.76,215.75,0.451069]
[1731511337679,48.411584,215.76,215.75,0.451069]
[1731511338053,24.6347,215.76,215.75,0.451069]
[1731511338381,20.0,215.76,215.75,0.451069]
[1731511339870,36.79998491,215.8,215.75,0.451069]
[1731511340070,4.6331,215.84,215.75,0.451069]
[1731511340071,36.79998491,215.78,215.75,0.451069]
[1731511340373,20.0,215.77,215.75,0.451069]
[1731511341159,161.6,215.79,215.75,0.451069]
[1731511341357,161.6,215.79,215.76,36.79998491]
[1731511341559,41.32369896,215.9,215.78,36.79998491]
[1731511341765,0.1,215.96,215.85,36.79998491]
[1731511341766,161.6,215.96,215.85,36.79998491]
[1731511341958,161.6,215.96,215.76,0.1]
[1731511341959,203.03018491,215.98,215.77,0.1]
[1731511342159,0.1,215.93,215.75,4.390569]
[1731511342369,0.1,215.87,215.75,2.073169]
[1731511342575,0.1,215.86,215.75,0.451069]
[1731511342953,0.1,215.87,215.75,0.451069]
[1731511342954,0.1,215.78,215.75,0.451069]
[1731511343149,61.43468491,215.76,215.75,0.451069]
[1731511343369,61.53468491,215.76,215.75,0.451069]
[1731511344056,61.43468491,215.76,215.75,0.451069]
[1731511344358,20.0,215.76,215.75,0.451069]
[1731511344566,56.79998491,215.76,215.75,0.451069]
[1731511344877,161.6,215.83,215.75,0.914469]
[1731511345081,13.2739,215.89,215.75,0.914469]
[1731511345082,36.79998491,215.86,215.76,36.79998491]
[1731511345266,41.43268491,215.86,215.76,36.79998491]
[1731511345776,161.6,215.85,215.78,36.79998491]
[1731511345959,161.6,215.85,215.75,1.609769]
[1731511345960,36.79998491,215.79,215.75,0.451069]
[1731511346160,36.89998491,215.77,215.75,0.451069]
[1731511346359,185.476884,215.76,215.75,0.451069]
[1731511346554,36.79998491,215.77,215.75,0.451069]
[1731511346964,20.0,215.76,215.75,0.451069]
[1731511348274,43.876884,215.76,215.75,0.451069]
[1731511349177,55.38468491,215.77,215.75,0.451069]
[1731511349178,36.79998491,215.77,215.75,0.451069]
[1731511349555,23.876884,215.76,215.75,0.451069]
[1731511350379,74.52686891,215.76,215.75,0.451069]
[1731511350677,20.0,215.64,215.59,1.6233]
[1731511350971,20.0,215.64,215.57,0.4638]
[1731511351172,20.0,215.64,215.55,0.4639]
[1731511351377,20.0,215.64,215.56,36.79998491]
[1731511351570,20.0,215.62,215.55,1.74919]
[1731511351876,20.0,215.62,215.56,36.79998491]
[1731511352174,20.0,215.66,215.57,0.12549]
[1731511352372,36.79998491,215.67,215.57,0.12549]
[1731511352373,20.0,215.67,215.6,36.79998491]
[1731511352583,20.0,215.67,215.57,0.12549]
[1731511352584,7.24572834,215.67,215.57,0.12549]
[1731511352757,7.24572834,215.67,215.62,36.79998491]
[1731511352957,7.24572834,215.67,215.63,0.12549]
[1731511353175,36.79998491,215.71,215.63,0.12549]
[1731511353368,36.79998491,215.71,215.6,36.79998491]
[1731511353676,167.03470177,215.72,215.6,36.79998491]
[1731511353677,162.39900177,215.72,215.64,36.79998491]
[1731511353971,36.79998491,215.7,215.61,36.79998491]
[1731511354278,162.39900177,215.72,215.63,36.79998491]
[1731511354491,162.39900177,215.72,215.57,0.1]
[1731511354492,36.79998491,215.76,215.67,36.79998491]
[1731511354655,36.79998491,215.82,215.74,36.79998491]
[1731511354975,0.79801304,215.79,215.73,0.12549]
[1731511355160,36.79998491,215.78,215.7,36.79998491]
[1731511355355,36.79998491,215.78,215.7,37.26348491]
[1731511355553,36.79998491,215.78,215.7,0.4635]
[1731511355757,161.6,215.82,215.74,36.79998491]
[1731511355955,4.6337,215.81,215.72,36.79998491]
[1731511356171,36.79998491,215.8,215.72,36.79998491]
[1731511356376,36.79998491,215.78,215.7,1.6225]
[1731511356574,36.79998491,215.74,215.66,36.79998491]
[1731511356784,36.79998491,215.7,215.6,36.79998491]
[1731511357066,36.79998491,215.74,215.64,36.79998491]
[1731511357259,36.79998491,215.76,215.68,36.79998491]
[1731511357457,20.0,215.77,215.7,36.79998491]
[1731511357667,7.24177897,215.81,215.72,36.79998491]
[1731511357868,36.79998491,215.8,215.7,36.79998491]
[1731511358074,36.79998491,215.76,215.66,36.79998491]
[1731511358468,36.79998491,215.74,215.64,36.79998491]
[1731511358663,36.79998491,215.7,215.62,38.42308491]
[1731511358864,20.0,215.69,215.62,1.1594]
[1731511359068,20.0,215.67,215.65,36.79998491]
[1731511359269,161.6,215.71,215.65,36.79998491]
[1731511359479,20.0,215.7,215.63,36.79998491]
[1731511359664,20.0,215.7,215.59,36.79998491]
[1731511359665,218.39998491,215.7,215.59,36.79998491]
[1731511360175,218.39998491,215.7,215.56,0.4639]
[1731511360176,20.0,215.68,215.61,36.79998491]
[1731511360382,20.0,215.68,215.59,36.79998491]
[1731511360585,20.0,215.68,215.61,36.79998491]
[1731511360883,20.0,215.68,215.63,36.79998491]
[1731511361174,161.6,215.69,215.63,36.79998491]
[1731511361387,166.2363,215.69,215.61,36.79998491]
[1731511361694,36.79998491,215.7,215.6,1.1595]
[1731511361695,4.635,215.75,215.65,36.79998491]
[1731511361858,4.635,215.75,215.64,0.12549]
[1731511361859,36.79998491,215.76,215.67,36.79998491]
[1731511362180,198.39998491,215.78,215.69,36.79998491]
[1731511362689,36.79998491,215.74,215.66,1.6228]
[1731511362861,20.0,215.73,215.66,1.6228]
[1731511363066,20.0,215.75,215.68,0.12549]
[1731511363374,20.0,215.75,215.67,36.79998491]
[1731511363666,36.79998491,215.74,215.66,1.6228]
[1731511363867,20.0,215.69,215.61,1.1594]
[1731511364084,20.0,215.67,215.61,1.6232]
[1731511364764,20.0,215.69,215.63,36.79998491]
[1731511364966,20.0,215.73,215.65,36.79998491]
[1731511365175,36.79998491,215.72,215.63,36.79998491]
[1731511365368,20.0,215.71,215.64,0.12549]
[1731511365680,36.79998491,215.74,215.64,0.12549]
[1731511365681,36.79998491,215.74,215.65,36.79998491]
[1731511365871,36.79998491,215.74,215.62,36.79998491]
[1731511365872,36.79998491,215.72,215.62,36.79998491]
[1731511366061,41.43528491,215.74,215.65,0.12549]
[1731511366462,36.79998491,215.7,215.61,1.6232]
[1731511366770,20.0,215.67,215.61,1.1594]
[1731511367079,20.0,215.65,215.59,0.4638]
[1731511367295,20.0,215.63,215.57,1.6235]
[1731511367470,20.0,215.63,215.58,36.79998491]
[1731511367676,20.0,215.63,215.55,33.4423]
[1731511367874,4.6367,215.68,215.55,33.4423]
[1731511367875,36.79998491,215.66,215.56,36.79998491]
[1731511368077,20.0,215.65,215.57,0.12549]
[1731511368279,20.0,215.65,215.56,36.79998491]
[1731511368583,166.2367,215.68,215.56,0.12549]
[1731511368584,20.0,215.63,215.56,0.12549]
[1731511368791,20.0,215.63,215.57,1.6235]
[1731511368974,20.0,215.63,215.58,36.79998491]
[1731511369174,36.79998491,215.7,215.6,36.79998491]
[1731511369788,36.79998491,215.68,215.58,36.79998491]
[1731511370369,36.79998491,215.66,215.59,0.12549]
[1731511370874,36.79998491,215.66,215.6,0.4638]
[1731511371198,36.79998491,215.68,215.61,0.12549]
[1731511371380,36.79998491,215.7,215.62,36.79998491]
[1731511371571,36.79998491,215.7,215.61,0.12549]
[1731511371779,36.79998491,215.66,215.6,1.1595]
[1731511372087,4.636,215.71,215.54,37.25105391]
[1731511372088,36.79998491,215.64,215.54,37.25105391]
[1731511372297,41.43598491,215.71,215.54,37.25105391]
[1731511372298,36.79998491,215.62,215.56,1.1597]
[1731511372665,20.0,215.61,215.56,1.1597]
[1731511373090,161.6,215.68,215.56,1.6236]
[1731511373091,20.0,215.63,215.56,1.6236]
[1731511373391,36.79998491,215.66,215.57,0.12549]
[1731511373571,161.6,215.7,215.62,36.79998491]